[Event "Titled Tuesday Blitz February 07 Late 2023"]
[White "Gurevich, Ilya"]
[Black "Zochowski, Kacper"]
[WhiteFideId "2000628"]
[BlackFideId "1125494"]
[WhiteElo "2586"]
[BlackElo "2262"]
[Result "1-0"]
[Round "06"]
[TimeControl "180+2"]
[Date "2023.02.07"]
[WhiteClock "0:00:04"]
[BlackClock "0:00:03"]

1. d4 {[%clk 0:03:00]}  d6 {[%clk 0:02:57]} 2. c4 {[%clk 0:02:59]}  Nd7 {[%clk 0:02:58]} 3. Nc3 {[%clk 0:02:59]}  Ngf6 {[%clk 0:02:58]} 4. e4 {[%clk 0:02:59]}  e5 {[%clk 0:02:58]} 5. Nf3 {[%clk 0:02:59]}  Be7 {[%clk 0:02:58]} 6. Be2 {[%clk 0:02:59]}  O-O {[%clk 0:02:59]} 7. O-O {[%clk 0:02:59]}  c6 {[%clk 0:02:59]} 8. h3 {[%clk 0:03:00]}  Re8 {[%clk 0:02:58]} 9. Be3 {[%clk 0:03:00]}  Bf8 {[%clk 0:02:59]} 10. d5 {[%clk 0:03:00]}  c5 {[%clk 0:02:58]} 11. Ne1 {[%clk 0:02:59]}  g6 {[%clk 0:02:57]} 12. Nd3 {[%clk 0:02:59]}  Bg7 {[%clk 0:02:55]} 13. a3 {[%clk 0:02:59]}  a6 {[%clk 0:02:51]} 14. b4 {[%clk 0:02:58]}  b6 {[%clk 0:02:51]} 15. bxc5 {[%clk 0:02:58]}  bxc5 {[%clk 0:02:51]} 16. Rb1 {[%clk 0:02:33]}  Rf8 {[%clk 0:02:51]} 17. Qa4 {[%clk 0:02:29]}  Nb8 {[%clk 0:02:00]} 18. Rb2 {[%clk 0:02:13]}  Nfd7 {[%clk 0:01:54]} 19. Rfb1 {[%clk 0:02:09]}  f5 {[%clk 0:01:53]} 20. Qd1 {[%clk 0:01:51]}  Qh4 {[%clk 0:01:30]} 21. f3 {[%clk 0:01:26]}  Bh6 {[%clk 0:01:26]} 22. Bf2 {[%clk 0:01:06]}  Qd8 {[%clk 0:01:26]} 23. Na4 {[%clk 0:00:57]}  Ra7 {[%clk 0:00:38]} 24. Nb6 {[%clk 0:00:50]}  Qc7 {[%clk 0:00:35]} 25. Qa4 {[%clk 0:00:33]}  Rb7 {[%clk 0:00:30]} 26. Nxc8 {[%clk 0:00:24]}  Rxb2 {[%clk 0:00:30]} 27. Ne7+ {[%clk 0:00:21]}  Kf7 {[%clk 0:00:30]} 28. Rxb2 {[%clk 0:00:19]}  Kxe7 {[%clk 0:00:30]} 29. Qc2 {[%clk 0:00:11]}  Nf6 {[%clk 0:00:23]} 30. exf5 {[%clk 0:00:10]}  gxf5 {[%clk 0:00:22]} 31. Qb1 {[%clk 0:00:10]}  Nbd7 {[%clk 0:00:19]} 32. Rb7 {[%clk 0:00:04]}  Qa5 {[%clk 0:00:19]} 33. Qb3 {[%clk 0:00:03]}  e4 {[%clk 0:00:18]} 34. Be1 {[%clk 0:00:02]}  Qd8 {[%clk 0:00:13]} 35. Nf2 {[%clk 0:00:03]}  Re8 {[%clk 0:00:10]} 36. fxe4 {[%clk 0:00:03]}  fxe4 {[%clk 0:00:10]} 37. Qg3 {[%clk 0:00:02]}  Kf8 {[%clk 0:00:11]} 38. Qxd6+ {[%clk 0:00:01]}  Kg7 {[%clk 0:00:11]} 39. Qg3+ {[%clk 0:00:01]}  Kh8 {[%clk 0:00:11]} 40. Ng4 {[%clk 0:00:02]}  Bg7 {[%clk 0:00:11]} 41. Nxf6 {[%clk 0:00:02]}  Bxf6 {[%clk 0:00:11]} 42. Bf2 {[%clk 0:00:02]}  e3 {[%clk 0:00:08]} 43. Be1 {[%clk 0:00:02]}  Bd4 {[%clk 0:00:09]} 44. Qd6 {[%clk 0:00:01]}  Re7 {[%clk 0:00:04]} 45. Bh4 {[%clk 0:00:02]}  Qf8 {[%clk 0:00:03]} 46. Qxe7 {[%clk 0:00:01]}  Qxe7 {[%clk 0:00:02]} 47. Bxe7 {[%clk 0:00:02]}  Ne5 {[%clk 0:00:02]} 48. Rb8+ {[%clk 0:00:02]}  Kg7 {[%clk 0:00:03]} 49. d6 {[%clk 0:00:03]}  Nxc4 {[%clk 0:00:03]} 50. Rb7 {[%clk 0:00:04]}  Nb2 {[%clk 0:00:02]} 51. d7 {[%clk 0:00:04]}  Nd3 {[%clk 0:00:02]} 52. d8=Q {[%clk 0:00:04]}  Nf4 {[%clk 0:00:03]} 53. Qf8+ {[%clk 0:00:03]}  Kg6 {[%clk 0:00:03]} 54. Rb6+ {[%clk 0:00:04]} 1-0


[Site "https://www.chess.com"]

[Event "Titled Tuesday Blitz February 07 Late 2023"]
[White "Schroeder, Jan-Christian"]
[Black "Goncalves, Davi Sulzbacher"]
[WhiteFideId "24662259"]
[BlackFideId "2154510"]
[WhiteElo "2553"]
[BlackElo "2282"]
[Result "1-0"]
[Round "06"]
[TimeControl "180+2"]
[Date "2023.02.07"]
[WhiteClock "0:01:03"]
[BlackClock "0:01:21"]

1. e4 {[%clk 0:03:00]}  g6 {[%clk 0:02:56]} 2. h4 {[%clk 0:02:57]}  Bg7 {[%clk 0:02:56]} 3. h5 {[%clk 0:02:57]}  d6 {[%clk 0:02:51]} 4. d4 {[%clk 0:02:57]}  c5 {[%clk 0:02:42]} 5. dxc5 {[%clk 0:02:49]}  Qa5+ {[%clk 0:02:40]} 6. c3 {[%clk 0:02:48]}  Qxc5 {[%clk 0:02:35]} 7. Be3 {[%clk 0:02:48]}  Qa5 {[%clk 0:02:23]} 8. h6 {[%clk 0:02:44]}  Bf6 {[%clk 0:02:16]} 9. Nd2 {[%clk 0:02:32]}  Nc6 {[%clk 0:02:15]} 10. Be2 {[%clk 0:02:18]}  e6 {[%clk 0:02:12]} 11. Nc4 {[%clk 0:02:16]}  Qc7 {[%clk 0:02:10]} 12. Nxd6+ {[%clk 0:02:16]}  Kf8 {[%clk 0:02:06]} 13. f4 {[%clk 0:02:10]}  e5 {[%clk 0:01:59]} 14. Nf3 {[%clk 0:02:04]}  Bg4 {[%clk 0:01:55]} 15. Nb5 {[%clk 0:01:32]}  Qd8 {[%clk 0:01:39]} 16. fxe5 {[%clk 0:01:26]}  Nxe5 {[%clk 0:01:35]} 17. Nxe5 {[%clk 0:01:20]}  Bxe2 {[%clk 0:01:27]} 18. Nd7+ {[%clk 0:01:15]}  Ke7 {[%clk 0:01:25]} 19. Qd6+ {[%clk 0:01:09]}  Ke8 {[%clk 0:01:24]} 20. Nc7+ {[%clk 0:01:02]}  Qxc7 {[%clk 0:01:21]} 21. Qxc7 {[%clk 0:01:03]} 1-0


[Site "https://www.chess.com"]

[Event "Titled Tuesday Blitz February 07 Late 2023"]
[White "Miszler, Levente"]
[Black "Taboas Rodriguez, Daniel"]
[WhiteFideId "763276"]
[BlackFideId "2208466"]
[WhiteElo "2271"]
[BlackElo "2371"]
[Result "1/2-1/2"]
[Round "06"]
[TimeControl "180+2"]
[Date "2023.02.07"]
[WhiteClock "0:01:37"]
[BlackClock "0:02:26"]

1. d4 {[%clk 0:03:00]}  Nf6 {[%clk 0:02:59]} 2. Nf3 {[%clk 0:02:59]}  g6 {[%clk 0:02:59]} 3. Bg5 {[%clk 0:02:58]}  Bg7 {[%clk 0:02:59]} 4. Qd2 {[%clk 0:02:59]}  d5 {[%clk 0:02:59]} 5. Nc3 {[%clk 0:02:58]}  Ne4 {[%clk 0:02:53]} 6. Nxe4 {[%clk 0:02:55]}  dxe4 {[%clk 0:02:54]} 7. Ne5 {[%clk 0:02:28]}  f6 {[%clk 0:02:53]} 8. Bh6 {[%clk 0:02:29]}  Bxh6 {[%clk 0:02:51]} 9. Qxh6 {[%clk 0:02:30]}  fxe5 {[%clk 0:02:52]} 10. Qg7 {[%clk 0:02:30]}  Rf8 {[%clk 0:02:51]} 11. Qxh7 {[%clk 0:02:29]}  Qxd4 {[%clk 0:02:46]} 12. Qxg6+ {[%clk 0:02:29]}  Rf7 {[%clk 0:02:45]} 13. Qg8+ {[%clk 0:02:29]}  Rf8 {[%clk 0:02:45]} 14. Qg6+ {[%clk 0:02:28]}  Rf7 {[%clk 0:02:27]} 15. Qg8+ {[%clk 0:01:37]}  Rf8 {[%clk 0:02:26]} 16. Qg6+ {[%clk 0:01:37]} 1/2-1/2


[Site "https://www.chess.com"]

[Event "Titled Tuesday Blitz February 07 Late 2023"]
[White "Gomes, Luiz Alexandre de Souza"]
[Black "Reprintsev, Alexander"]
[WhiteFideId "2102790"]
[BlackFideId "14100541"]
[WhiteElo "2254"]
[BlackElo "2253"]
[Result "1-0"]
[Round "06"]
[TimeControl "180+2"]
[Date "2023.02.07"]
[WhiteClock "0:00:20"]
[BlackClock "0:00:13"]

1. e4 {[%clk 0:03:00]}  d5 {[%clk 0:02:58]} 2. exd5 {[%clk 0:03:00]}  Qxd5 {[%clk 0:02:57]} 3. Nc3 {[%clk 0:03:00]}  Qa5 {[%clk 0:02:57]} 4. Bc4 {[%clk 0:02:59]}  Nf6 {[%clk 0:02:51]} 5. d3 {[%clk 0:03:00]}  Bg4 {[%clk 0:02:51]} 6. f3 {[%clk 0:02:59]}  Be6 {[%clk 0:02:51]} 7. Bxe6 {[%clk 0:02:57]}  fxe6 {[%clk 0:02:52]} 8. Bd2 {[%clk 0:02:56]}  Nc6 {[%clk 0:02:52]} 9. Nge2 {[%clk 0:02:55]}  O-O-O {[%clk 0:02:51]} 10. O-O {[%clk 0:02:51]}  h6 {[%clk 0:02:44]} 11. Kh1 {[%clk 0:02:52]}  g5 {[%clk 0:02:41]} 12. Ng3 {[%clk 0:02:49]}  Bg7 {[%clk 0:02:40]} 13. Re1 {[%clk 0:02:44]}  e5 {[%clk 0:02:37]} 14. a3 {[%clk 0:02:37]}  Nd4 {[%clk 0:02:21]} 15. b4 {[%clk 0:02:33]}  Qb6 {[%clk 0:02:21]} 16. Na4 {[%clk 0:02:21]}  Qc6 {[%clk 0:02:17]} 17. Nc5 {[%clk 0:02:21]}  Nd7 {[%clk 0:02:05]} 18. c3 {[%clk 0:02:19]}  Nxc5 {[%clk 0:02:02]} 19. bxc5 {[%clk 0:02:16]}  Ne6 {[%clk 0:02:00]} 20. Nf5 {[%clk 0:02:01]}  Qxc5 {[%clk 0:01:54]} 21. Be3 {[%clk 0:01:57]}  Qa5 {[%clk 0:01:49]} 22. Qb3 {[%clk 0:01:51]}  Qa6 {[%clk 0:01:42]} 23. Rab1 {[%clk 0:01:34]}  Bf6 {[%clk 0:01:36]} 24. d4 {[%clk 0:01:31]}  exd4 {[%clk 0:01:27]} 25. cxd4 {[%clk 0:01:30]}  Nf4 {[%clk 0:01:26]} 26. Bxf4 {[%clk 0:01:23]}  gxf4 {[%clk 0:01:24]} 27. Nxe7+ {[%clk 0:01:19]}  Bxe7 {[%clk 0:01:23]} 28. Rxe7 {[%clk 0:01:20]}  Rxd4 {[%clk 0:01:19]} 29. Qf7 {[%clk 0:01:17]}  Qd6 {[%clk 0:01:10]} 30. Rbe1 {[%clk 0:01:14]}  Rd8 {[%clk 0:01:09]} 31. h3 {[%clk 0:01:10]}  Rd1 {[%clk 0:01:09]} 32. Kh2 {[%clk 0:01:03]}  Rxe1 {[%clk 0:01:07]} 33. Rxe1 {[%clk 0:01:04]}  Qxa3 {[%clk 0:01:01]} 34. Qf5+ {[%clk 0:01:00]}  Kb8 {[%clk 0:00:54]} 35. Qf6 {[%clk 0:01:00]}  Qd6 {[%clk 0:00:53]} 36. Re6 {[%clk 0:01:00]}  Qd7 {[%clk 0:00:53]} 37. Qxh6 {[%clk 0:01:00]}  a5 {[%clk 0:00:52]} 38. Qf6 {[%clk 0:00:56]}  a4 {[%clk 0:00:51]} 39. Re7 {[%clk 0:00:56]}  Qd6 {[%clk 0:00:48]} 40. Re6 {[%clk 0:00:56]}  Qf8 {[%clk 0:00:48]} 41. Qc3 {[%clk 0:00:51]}  Qg8 {[%clk 0:00:41]} 42. Re1 {[%clk 0:00:45]}  Qg3+ {[%clk 0:00:40]} 43. Kh1 {[%clk 0:00:45]}  a3 {[%clk 0:00:37]} 44. Rc1 {[%clk 0:00:44]}  c6 {[%clk 0:00:32]} 45. Qxa3 {[%clk 0:00:44]}  Qf2 {[%clk 0:00:30]} 46. Qb4 {[%clk 0:00:39]}  Qd2 {[%clk 0:00:28]} 47. Qc4 {[%clk 0:00:30]}  Rd7 {[%clk 0:00:24]} 48. Rc2 {[%clk 0:00:28]}  Qd1+ {[%clk 0:00:22]} 49. Kh2 {[%clk 0:00:28]}  Qd3 {[%clk 0:00:20]} 50. Qxf4+ {[%clk 0:00:28]}  Qd6 {[%clk 0:00:17]} 51. Qxd6+ {[%clk 0:00:25]}  Rxd6 {[%clk 0:00:18]} 52. h4 {[%clk 0:00:26]}  Kc7 {[%clk 0:00:13]} 53. g4 {[%clk 0:00:26]}  b5 {[%clk 0:00:14]} 54. g5 {[%clk 0:00:26]}  b4 {[%clk 0:00:12]} 55. h5 {[%clk 0:00:26]}  b3 {[%clk 0:00:10]} 56. Rb2 {[%clk 0:00:25]}  Rd5 {[%clk 0:00:10]} 57. f4 {[%clk 0:00:25]}  Kd6 {[%clk 0:00:11]} 58. Kg3 {[%clk 0:00:24]}  Ke6 {[%clk 0:00:11]} 59. Kg4 {[%clk 0:00:25]}  Rb5 {[%clk 0:00:11]} 60. h6 {[%clk 0:00:24]}  Kf7 {[%clk 0:00:12]} 61. f5 {[%clk 0:00:23]}  c5 {[%clk 0:00:12]} 62. g6+ {[%clk 0:00:22]}  Kg8 {[%clk 0:00:13]} 63. f6 {[%clk 0:00:20]}  c4 {[%clk 0:00:13]} 64. f7+ {[%clk 0:00:20]}  Kf8 {[%clk 0:00:13]} 65. h7 {[%clk 0:00:20]} 1-0


[Site "https://www.chess.com"]

[Event "Titled Tuesday Blitz February 07 Late 2023"]
[White "Lacasa Diaz, Jose Antonio"]
[Black "Koutlas, Nikolaos"]
[WhiteFideId "2203375"]
[BlackFideId "25827138"]
[WhiteElo "2359"]
[BlackElo "2341"]
[Result "0-1"]
[Round "06"]
[TimeControl "180+2"]
[Date "2023.02.07"]
[WhiteClock "0:00:32"]
[BlackClock "0:00:29"]

1. e4 {[%clk 0:03:00]}  e6 {[%clk 0:02:58]} 2. d4 {[%clk 0:02:58]}  d5 {[%clk 0:02:59]} 3. e5 {[%clk 0:02:57]}  c5 {[%clk 0:02:59]} 4. c3 {[%clk 0:02:58]}  Nc6 {[%clk 0:03:00]} 5. Nf3 {[%clk 0:02:59]}  Bd7 {[%clk 0:03:00]} 6. a3 {[%clk 0:02:59]}  c4 {[%clk 0:02:59]} 7. Nbd2 {[%clk 0:02:59]}  f6 {[%clk 0:02:59]} 8. g3 {[%clk 0:02:53]}  fxe5 {[%clk 0:02:56]} 9. dxe5 {[%clk 0:02:53]}  Nge7 {[%clk 0:02:56]} 10. h4 {[%clk 0:02:51]}  Ng6 {[%clk 0:02:55]} 11. Qe2 {[%clk 0:02:51]}  Qc7 {[%clk 0:02:54]} 12. Bh3 {[%clk 0:02:49]}  Ngxe5 {[%clk 0:02:52]} 13. O-O {[%clk 0:02:46]}  O-O-O {[%clk 0:02:46]} 14. Re1 {[%clk 0:02:45]}  Nxf3+ {[%clk 0:02:41]} 15. Nxf3 {[%clk 0:02:46]}  Bc5 {[%clk 0:02:40]} 16. Bf4 {[%clk 0:02:39]}  e5 {[%clk 0:02:40]} 17. Bxd7+ {[%clk 0:02:37]}  Qxd7 {[%clk 0:02:38]} 18. Nxe5 {[%clk 0:02:37]}  Nxe5 {[%clk 0:02:36]} 19. Qxe5 {[%clk 0:02:35]}  Bd6 {[%clk 0:02:30]} 20. Qxd6 {[%clk 0:02:10]}  Qxd6 {[%clk 0:02:31]} 21. Bxd6 {[%clk 0:02:10]}  Rxd6 {[%clk 0:02:29]} 22. Re7 {[%clk 0:02:11]}  Rd7 {[%clk 0:02:18]} 23. Rae1 {[%clk 0:02:10]}  Rhd8 {[%clk 0:02:18]} 24. R1e5 {[%clk 0:02:02]}  Rxe7 {[%clk 0:02:17]} 25. Rxe7 {[%clk 0:02:01]}  Rd7 {[%clk 0:02:18]} 26. Re8+ {[%clk 0:01:44]}  Kc7 {[%clk 0:02:06]} 27. Kg2 {[%clk 0:01:42]}  d4 {[%clk 0:01:49]} 28. cxd4 {[%clk 0:01:41]}  Rxd4 {[%clk 0:01:39]} 29. Kf3 {[%clk 0:01:33]}  Rd2 {[%clk 0:01:34]} 30. Re7+ {[%clk 0:01:31]}  Kc6 {[%clk 0:01:33]} 31. Re2 {[%clk 0:01:26]}  Rxe2 {[%clk 0:01:28]} 32. Kxe2 {[%clk 0:01:26]}  Kd5 {[%clk 0:01:26]} 33. Ke3 {[%clk 0:01:22]}  b5 {[%clk 0:01:25]} 34. g4 {[%clk 0:01:18]}  a5 {[%clk 0:01:25]} 35. f3 {[%clk 0:01:07]}  b4 {[%clk 0:01:11]} 36. axb4 {[%clk 0:01:08]}  axb4 {[%clk 0:01:06]} 37. h5 {[%clk 0:01:01]}  h6 {[%clk 0:01:00]} 38. f4 {[%clk 0:00:47]}  c3 {[%clk 0:00:51]} 39. bxc3 {[%clk 0:00:47]}  bxc3 {[%clk 0:00:51]} 40. g5 {[%clk 0:00:47]}  Kc4 {[%clk 0:00:44]} 41. f5 {[%clk 0:00:40]}  Kb3 {[%clk 0:00:35]} 42. f6 {[%clk 0:00:39]}  gxf6 {[%clk 0:00:29]} 43. gxf6 {[%clk 0:00:32]}  c2 {[%clk 0:00:29]} 44. Kf4 {[%clk 0:00:31]}  c1=Q+ {[%clk 0:00:29]} 45. Kf5 {[%clk 0:00:32]}  Qg5+ {[%clk 0:00:29]} 0-1


[Site "https://www.chess.com"]

[Event "Titled Tuesday Blitz February 07 Late 2023"]
[White "Cueto, Jonny"]
[Black "Iljin, Timofey"]
[WhiteFideId "3300145"]
[BlackFideId "14110180"]
[WhiteElo "2122"]
[BlackElo "2329"]
[Result "0-1"]
[Round "06"]
[TimeControl "180+2"]
[Date "2023.02.07"]
[WhiteClock "0:00:06"]
[BlackClock "0:02:17"]

1. d4 {[%clk 0:02:57]}  d5 {[%clk 0:02:59]} 2. Bf4 {[%clk 0:02:58]}  c5 {[%clk 0:02:58]} 3. e3 {[%clk 0:02:56]}  Nc6 {[%clk 0:02:59]} 4. Nf3 {[%clk 0:02:56]}  Nf6 {[%clk 0:02:58]} 5. Nbd2 {[%clk 0:02:57]}  cxd4 {[%clk 0:02:55]} 6. exd4 {[%clk 0:02:58]}  Bf5 {[%clk 0:02:56]} 7. c3 {[%clk 0:02:54]}  e6 {[%clk 0:02:57]} 8. Ne5 {[%clk 0:02:54]}  Bd6 {[%clk 0:02:58]} 9. Ndf3 {[%clk 0:02:52]}  O-O {[%clk 0:02:54]} 10. Bd3 {[%clk 0:02:52]}  Ne4 {[%clk 0:02:51]} 11. O-O {[%clk 0:02:41]}  Qc7 {[%clk 0:02:51]} 12. Re1 {[%clk 0:01:37]}  f6 {[%clk 0:02:50]} 13. Nxc6 {[%clk 0:01:37]}  Bxf4 {[%clk 0:02:50]} 14. Nb4 {[%clk 0:01:31]}  Bd6 {[%clk 0:02:50]} 15. Nc2 {[%clk 0:01:31]}  g5 {[%clk 0:02:47]} 16. h3 {[%clk 0:01:21]}  h5 {[%clk 0:02:42]} 17. Bxe4 {[%clk 0:01:13]}  Bxe4 {[%clk 0:02:40]} 18. Nd2 {[%clk 0:01:10]}  Bf5 {[%clk 0:02:29]} 19. Ne3 {[%clk 0:01:08]}  Bg6 {[%clk 0:02:28]} 20. Rc1 {[%clk 0:00:40]}  Bh2+ {[%clk 0:02:28]} 21. Kh1 {[%clk 0:00:39]}  Bf4 {[%clk 0:02:28]} 22. c4 {[%clk 0:00:37]}  dxc4 {[%clk 0:02:28]} 23. Nexc4 {[%clk 0:00:35]}  Qd7 {[%clk 0:02:28]} 24. Nf3 {[%clk 0:00:33]}  Bxc1 {[%clk 0:02:24]} 25. Qb3 {[%clk 0:00:07]}  Bf4 {[%clk 0:02:20]} 26. Na5 {[%clk 0:00:07]}  b6 {[%clk 0:02:16]} 27. Nc4 {[%clk 0:00:07]}  Rac8 {[%clk 0:02:15]} 28. Nfd2 {[%clk 0:00:05]}  Qd5 {[%clk 0:02:13]} 29. f3 {[%clk 0:00:04]}  Bxd2 {[%clk 0:02:12]} 30. Nxd2 {[%clk 0:00:04]}  Qxb3 {[%clk 0:02:13]} 31. Nxb3 {[%clk 0:00:04]}  Kf7 {[%clk 0:02:11]} 32. Rd1 {[%clk 0:00:04]}  Rfd8 {[%clk 0:02:12]} 33. Re1 {[%clk 0:00:04]}  Rd5 {[%clk 0:02:13]} 34. Kh2 {[%clk 0:00:03]}  Rcd8 {[%clk 0:02:14]} 35. h4 {[%clk 0:00:04]}  gxh4 {[%clk 0:02:13]} 36. Kh3 {[%clk 0:00:04]}  Bf5+ {[%clk 0:02:14]} 37. Kxh4 {[%clk 0:00:05]}  Rg8 {[%clk 0:02:15]} 38. g4 {[%clk 0:00:04]}  hxg4 {[%clk 0:02:15]} 39. fxg4 {[%clk 0:00:05]}  Rxg4+ {[%clk 0:02:16]} 40. Kh5 {[%clk 0:00:06]}  Rd8 {[%clk 0:02:17]} 0-1


[Site "https://www.chess.com"]

[Event "Titled Tuesday Blitz February 07 Late 2023"]
[White "Mesa Cruz, Juan Carlos"]
[Black "Clawitter, Craig"]
[WhiteFideId "6423400"]
[BlackFideId "2023105"]
[WhiteElo "2122"]
[BlackElo "2050"]
[Result "1-0"]
[Round "06"]
[TimeControl "180+2"]
[Date "2023.02.07"]
[WhiteClock "0:01:15"]
[BlackClock "0:00:03"]

1. e4 {[%clk 0:03:00]}  e6 {[%clk 0:03:00]} 2. Qe2 {[%clk 0:02:59]}  c5 {[%clk 0:02:59]} 3. Nf3 {[%clk 0:02:59]}  Nc6 {[%clk 0:03:00]} 4. g3 {[%clk 0:03:00]}  g6 {[%clk 0:03:00]} 5. Bg2 {[%clk 0:03:01]}  Bg7 {[%clk 0:03:00]} 6. O-O {[%clk 0:03:01]}  Nge7 {[%clk 0:03:00]} 7. c3 {[%clk 0:03:01]}  O-O {[%clk 0:03:00]} 8. d3 {[%clk 0:03:01]}  d6 {[%clk 0:02:53]} 9. Re1 {[%clk 0:03:01]}  e5 {[%clk 0:02:53]} 10. a3 {[%clk 0:03:01]}  Rb8 {[%clk 0:02:51]} 11. b4 {[%clk 0:03:01]}  b6 {[%clk 0:02:48]} 12. Nbd2 {[%clk 0:03:00]}  h6 {[%clk 0:02:47]} 13. Bb2 {[%clk 0:03:00]}  f5 {[%clk 0:02:45]} 14. d4 {[%clk 0:02:58]}  f4 {[%clk 0:02:40]} 15. dxe5 {[%clk 0:02:55]}  dxe5 {[%clk 0:02:34]} 16. Rad1 {[%clk 0:02:55]}  Qe8 {[%clk 0:02:29]} 17. Nc4 {[%clk 0:02:52]}  g5 {[%clk 0:02:25]} 18. Nd6 {[%clk 0:02:52]}  Qh5 {[%clk 0:02:24]} 19. Qc4+ {[%clk 0:02:48]}  Kh7 {[%clk 0:02:10]} 20. Nxc8 {[%clk 0:02:48]}  Rfxc8 {[%clk 0:02:00]} 21. b5 {[%clk 0:02:48]}  Na5 {[%clk 0:01:37]} 22. Qe6 {[%clk 0:02:48]}  Ng6 {[%clk 0:01:38]} 23. Rd7 {[%clk 0:02:43]}  g4 {[%clk 0:01:27]} 24. Qf7 {[%clk 0:02:22]}  Rg8 {[%clk 0:01:23]} 25. Nh4 {[%clk 0:02:22]}  Rbf8 {[%clk 0:01:01]} 26. Qxg6+ {[%clk 0:02:11]}  Qxg6 {[%clk 0:01:00]} 27. Nxg6 {[%clk 0:02:12]}  Kxg6 {[%clk 0:01:01]} 28. Bf1 {[%clk 0:02:11]}  Rf7 {[%clk 0:00:57]} 29. Red1 {[%clk 0:02:11]}  Rgf8 {[%clk 0:00:37]} 30. Rxf7 {[%clk 0:02:02]}  Rxf7 {[%clk 0:00:36]} 31. Be2 {[%clk 0:01:58]}  h5 {[%clk 0:00:26]} 32. Rd6+ {[%clk 0:01:57]}  Bf6 {[%clk 0:00:20]} 33. c4 {[%clk 0:01:56]}  Kg7 {[%clk 0:00:17]} 34. gxf4 {[%clk 0:01:53]}  exf4 {[%clk 0:00:17]} 35. e5 {[%clk 0:01:52]}  Be7 {[%clk 0:00:09]} 36. e6+ {[%clk 0:01:49]}  Bf6 {[%clk 0:00:06]} 37. exf7 {[%clk 0:01:23]}  Bxb2 {[%clk 0:00:05]} 38. Bd3 {[%clk 0:01:19]}  Bxa3 {[%clk 0:00:04]} 39. Bg6 {[%clk 0:01:15]}  Nxc4 {[%clk 0:00:03]} 40. Rd8 {[%clk 0:01:15]} 1-0


[Site "https://www.chess.com"]

[Event "Titled Tuesday Blitz February 07 Late 2023"]
[White "Smith, Garrett L"]
[Black "Aguilar, Juan"]
[WhiteFideId "2024829"]
[BlackFideId "3800091"]
[WhiteElo "2047"]
[BlackElo "2254"]
[Result "0-1"]
[Round "06"]
[TimeControl "180+2"]
[Date "2023.02.07"]
[WhiteClock "0:00:12"]
[BlackClock "0:00:12"]

1. e4 {[%clk 0:03:00]}  g6 {[%clk 0:02:58]} 2. d4 {[%clk 0:03:00]}  Bg7 {[%clk 0:02:58]} 3. Nc3 {[%clk 0:03:01]}  d6 {[%clk 0:02:59]} 4. Be3 {[%clk 0:03:00]}  a6 {[%clk 0:02:59]} 5. g4 {[%clk 0:03:00]}  b5 {[%clk 0:02:58]} 6. Bg2 {[%clk 0:02:50]}  Bb7 {[%clk 0:02:58]} 7. a4 {[%clk 0:02:48]}  b4 {[%clk 0:02:54]} 8. Na2 {[%clk 0:02:48]}  a5 {[%clk 0:02:47]} 9. c3 {[%clk 0:02:49]}  Nf6 {[%clk 0:02:32]} 10. f3 {[%clk 0:02:38]}  bxc3 {[%clk 0:02:25]} 11. Nxc3 {[%clk 0:02:39]}  O-O {[%clk 0:02:18]} 12. Nge2 {[%clk 0:02:37]}  Nc6 {[%clk 0:02:15]} 13. h4 {[%clk 0:02:22]}  Nb4 {[%clk 0:01:59]} 14. h5 {[%clk 0:02:11]}  Ba6 {[%clk 0:01:56]} 15. Qd2 {[%clk 0:01:57]}  e5 {[%clk 0:01:46]} 16. d5 {[%clk 0:01:40]}  Nd3+ {[%clk 0:01:39]} 17. Kf1 {[%clk 0:01:39]}  Nf4 {[%clk 0:01:35]} 18. Kf2 {[%clk 0:01:30]}  Rb8 {[%clk 0:01:33]} 19. Nxf4 {[%clk 0:01:26]}  exf4 {[%clk 0:01:33]} 20. Bxf4 {[%clk 0:01:26]}  c6 {[%clk 0:01:31]} 21. dxc6 {[%clk 0:01:21]}  Qb6+ {[%clk 0:01:30]} 22. Be3 {[%clk 0:01:18]}  Qxc6 {[%clk 0:01:30]} 23. hxg6 {[%clk 0:01:06]}  fxg6 {[%clk 0:01:25]} 24. Kg1 {[%clk 0:00:51]}  Nd7 {[%clk 0:01:01]} 25. Nd5 {[%clk 0:00:46]}  Rbe8 {[%clk 0:00:50]} 26. Bd4 {[%clk 0:00:43]}  Ne5 {[%clk 0:00:49]} 27. Rc1 {[%clk 0:00:37]}  Qxa4 {[%clk 0:00:45]} 28. b4 {[%clk 0:00:28]}  axb4 {[%clk 0:00:36]} 29. Nc7 {[%clk 0:00:24]}  b3 {[%clk 0:00:23]} 30. Nxe8 {[%clk 0:00:22]}  Rxe8 {[%clk 0:00:21]} 31. f4 {[%clk 0:00:17]}  Nf3+ {[%clk 0:00:21]} 32. Bxf3 {[%clk 0:00:17]}  Bxd4+ {[%clk 0:00:22]} 33. Kg2 {[%clk 0:00:17]}  b2 {[%clk 0:00:22]} 34. Rb1 {[%clk 0:00:17]}  Bb7 {[%clk 0:00:17]} 35. f5 {[%clk 0:00:17]}  Rxe4 {[%clk 0:00:14]} 36. Qh6 {[%clk 0:00:16]}  Re2+ {[%clk 0:00:13]} 37. Kf1 {[%clk 0:00:12]}  Rf2+ {[%clk 0:00:14]} 38. Ke1 {[%clk 0:00:13]}  Qb4+ {[%clk 0:00:13]} 39. Kd1 {[%clk 0:00:12]}  Bxf3# {[%clk 0:00:12]} 0-1


[Site "https://www.chess.com"]